Cogmind - Beta 13 @@@ ROGUE MODE // 2024.06.09 @ 21:07:09 Player: Waste Result: Destroyed by G-34 Mercenary with Small Laser Performance ------------- Evolutions (0) 0 Regions Visited (1) 200 Robots Destroyed (26) 130 Value Destroyed (417) 417 Prototype IDs (0) 0 Alien Tech Used (0) 0 Bonus (0) 0 TOTAL SCORE: 747 Bonus ------- None Cogmind --------- Core Integrity 0/250 Matter 300/300 Energy 86/100 System Corruption 0% Temperature Cool (46) Movement Treading (320) Ox2 Location -10/Materials Parts ------- > --- POWER (1) -------- (None) > --- PROPULSION (2) --- Light Treads Light Treads > --- UTILITY (2) ------ Huge Storage Unit > --- WEAPON (2) ------- Small Laser Small Laser > --- INVENTORY (25) --- Light Ion Engine Light Treads Light Treads Compact Wheel Compact Wheel Small Storage Unit Huge Storage Unit Structural Scanner EM Pulse Gun Grenade Launcher Grenade Launcher Mining Claw Mining Claw Peak State ------------ > --- POWER ------------ Light Ion Engine > --- PROPULSION ------- Aluminum Leg Aluminum Leg > --- UTILITY ---------- Small Storage Unit Huge Storage Unit > --- WEAPON ----------- Medium Laser Light Assault Rifle > --- INVENTORY -------- Light Ion Engine Light Treads Light Treads Compact Wheel Compact Wheel Structural Scanner EM Pulse Gun Assault Rifle [Rating: 7] Favorites ----------- Power Light Ion Engine Engine Light Ion Engine Propulsion Aluminum Leg Treads Light Treads Leg Aluminum Leg Utility Huge Storage Unit Storage Huge Storage Unit Weapon Assault Rifle Energy Gun Medium Laser Ballistic Gun Assault Rifle Ballistic Cannon Light Cannon Slashing Weapon Mining Claw Build | -11 -10 ------- Run | Yrd Mat Slots Evolved . | . . Power . | . . Propulsion . | . . Utility . | . . Weapon . | . . Parts Attached 16 | . 16 Power 2 | . 2 Engine 2 | . 2 Core . | . . Reactor . | . . Propulsion 3 | . 3 Treads 2 | . 2 Leg 1 | . 1 Wheel . | . . Hover . | . . Flight . | . . Utility 1 | . 1 Device . | . . Storage 1 | . 1 Processor . | . . Hackware . | . . Protection . | . . Artifact . | . . Weapon 10 | . 10 Energy Gun 4 | . 4 Energy Cannon . | . . Ballistic Gun 4 | . 4 Ballistic Cannon 1 | . 1 Launcher . | . . Special Weapon . | . . Impact Weapon . | . . Slashing Weapon 1 | . 1 Piercing Weapon . | . . Special Melee Weapon . | . . Unidentified Prototypes . | . . Parts Lost 8 | . 8 Power 1 | . 1 Propulsion 2 | . 2 Utility . | . . Weapon 5 | . 5 Highest Loss Streak 4 | . 4 To Critical Strikes . | . . Average Slot Usage (%) 74 | . 74 Engine 4 | . 4 Treads 1 | . 1 Leg 26 | . 26 Storage 14 | . 14 Energy Gun 8 | . 8 Ballistic Gun 12 | . 12 Ballistic Cannon 6 | . 6 Naked Turns . | . . Heaviest Build 86 | 12 86 Greatest Support 40 | 20 40 Greatest Overweight (x) 4 | . 4 Average Overweight (x) 2 | . 2 Largest Inventory Capacity 25 | . 25 Average Capacity 22 | . 22 Most Carried 17 | . 17 Average Carried 12 | . 12 Final Capacity 25 | 8 25 Final Carried 13 | 6 13 Class Distribution -------------------- 100% | Mutant Dominant Class ---------------- Mutant | -10/Materials Resources | -11 -10 ----------- Run | Yrd Mat Matter Collected 600 | 200 400 Remotely . | . . Salvage Created 633 | . 633 Parts 45 | . 45 Haulers Intercepted 2 | . 2 Recyclers Shooed 1 | . 1 Parts Field Recycled . | . . Retrieved Matter . | . . Parts Self-Destructed . | . . Prevented . | . . Kills | -11 -10 ------- Run | Yrd Mat Combat Hostiles Destroyed 17 | . 17 Guns 14 | . 14 Cannons 3 | . 3 Classes Destroyed 8 | . 8 Worker 2 | . 2 Builder 1 | . 1 Hauler 2 | . 2 Recycler 2 | . 2 Operator 1 | . 1 Watcher 1 | . 1 Swarmer 9 | . 9 Grunt 8 | . 8 Best Kill Streak 4 | . 4 Combat Bots Only 3 | . 3 Max Kills in Single Turn 1 | . 1 Gunslinging . | . . Exploded . | . . Melee . | . . Uniques/NPCs Destroyed . | . . Combat | -11 -10 -------- Run | Yrd Mat Hostile Shots Fired 155 | . 155 Missed 38 | . 38 Damage Taken 1114 | . 1114 Core 251 | . 251 Absorbed by Shields . | . . Core Remaining (%) 100 | 100 . Volleys Fired 81 | . 81 Largest 2 | . 2 Hottest 85 | . 85 Shots Fired 155 | . 155 Gun 120 | . 120 Cannon 35 | . 35 Launcher . | . . Special . | . . Kinetic 99 | . 99 Thermal 56 | . 56 Explosive . | . . Electromagnetic . | . . Robot Hit Streak 14 | . 14 Robot Miss Streak 7 | . 7 Penetration Max . | . . Secondary Targets 4 | . 4 Max Gunslinging Chain 1 | . 1 Shots Hit Robots 90 | . 90 Core Hits 39 | . 39 Critical Kills . | . . Critical Parts Destroyed . | . . Critical Strikes 5 | . 5 Burn 3 | . 3 Blast 2 | . 2 Melee Attacks . | . . Impact . | . . Slashing . | . . Piercing . | . . Sneak Attacks . | . . Combat Hostiles . | . . Follow-up Attacks . | . . Damage Inflicted 1264 | . 1264 Guns 769 | . 769 Cannons 478 | . 478 Explosions . | . . Melee . | . . Ramming 17 | . 17 Kinetic 829 | . 829 Thermal 418 | . 418 Explosive . | . . Electromagnetic . | . . Impact . | . . Slashing . | . . Piercing . | . . Highest Corruption . | . . Average Corruption . | . . Corruption Purged . | . . Corruption Blocked . | . . Overload Shots . | . . Overflow Damage . | . . Projectiles . | . . Explosions . | . . Melee . | . . Knockbacks 8 | . 8 Impact . | . . Kinetic 8 | . 8 Secondary . | . . Self-Inflicted Damage . | . . Shots . | . . Rammed . | . . Targets Rammed 6 | . 6 Kicked 6 | . 6 Crushed . | . . Highest Temperature 196 | . 196 Average Temperature 78 | . 78 Received Heat Transfer 372 | . 372 Siege Activations . | . . Robots Corrupted . | . . Combat Hostiles . | . . Parts Fried . | . . Impact Corruptions . | . . Robots Melted . | . . Combat Hostiles . | . . Parts Melted 3 | . 3 Heat Transferred 1337 | . 1337 Parts Sabotaged . | . . Parts Stolen . | . . Parts Stripped . | . . Power Chain Reactions . | . . Alert | -11 -10 ------- Run | Yrd Mat Peak Influence 221 | . 221 Initial . | . . Average 78 | . 78 Maximum Alert Level 1 | . 1 Low Security (%) 86 | . 86 Level 1 13 | . 13 Level 2 . | . . Level 3 . | . . Level 4 . | . . Level 5 . | . . High Security . | . . Max Security . | . . Squads Dispatched 4 | . 4 Investigation 1 | . 1 Extermination . | . . Reinforcement 3 | . 3 Assault . | . . Garrison . | . . Intercept . | . . Searches Triggered . | . . Construction Impeded . | . . Haulers Reinforced . | . . Active Scanning Responses . | . . Cargo Convoy Interrupts . | . . Stealth | -11 -10 --------- Run | Yrd Mat Distress Signals 2 | . 2 Communications Jammed . | . . Distress Signals . | . . Times Spotted 31 | . 31 Peak Tracking Total 4 | . 4 Tactical Retreats 1 | . 1 Traps | -11 -10 ------- Run | Yrd Mat Traps Triggered 3 | . 3 Indirectly . | . . Trap Hack Attempts . | . . Triggered . | . . Disarmed . | . . Reprogrammed . | . . Reused . | . . Traps Extracted . | . . Installed . | . . Triggered . | . . Machines | -11 -10 ---------- Run | Yrd Mat Machines Disabled 1 | . 1 Max in Single Turn 1 | . 1 Machines Repaired . | . . Machines Dismantled . | . . Machines Sabotaged . | . . Overloaded Fab Kills . | . . Hacking | -11 -10 --------- Run | Yrd Mat Machines Accessed 1 | . 1 Terminals 1 | . 1 Fabricators . | . . Repair Stations . | . . Recycling Units . | . . Scanalyzers . | . . Garrison Access . | . . Total Hacks 1 | . 1 Successful . | . . Failed 1 | . 1 Catastrophic 1 | . 1 Database Lockouts . | . . Manual 1 | . 1 Terminals 1 | . 1 Fabricators . | . . Repair Stations . | . . Recycling Units . | . . Scanalyzers . | . . Garrison Access . | . . Terminal Hacks . | . . Fabricator Hacks . | . . Repair Station Hacks . | . . Recycling Unit Hacks . | . . Scanalyzer . | . . Garrison Access Hacks . | . . Unauthorized Hacks . | . . Terminals . | . . Fabricators . | . . Repair Stations . | . . Recycling Units . | . . Scanalyzers . | . . Garrison Access . | . . Data Cores Recovered . | . . Used . | . . Hacking Detections 1 | . 1 Full Trace Events . | . . Feedback Events . | . . Feedback Blocked . | . . Robot Schematics Acquired . | . . Robots Built . | . . Authchips . | . . Time . | . . Total Robot Build Rating . | . . Part Schematics Acquired . | . . Parts Built . | . . Authchips . | . . Time . | . . Total Part Build Rating . | . . Parts Repaired . | . . Time . | . . Parts Recycled . | . . Recycled Matter . | . . Retrieved Matter . | . . Retrieved Components . | . . Parts Scanalyzed . | . . Part Schematics Acquired . | . . Parts Damaged . | . . Bothacking | -11 -10 ------------ Run | Yrd Mat Used RIF Installer . | . . Robots Hacked . | . . Non-combat . | . . Combat . | . . Robot Hacks Applied . | . . Relay Couplers Released . | . . Fabnet Peak Effective % . | . . Robots Rewired . | . . Allies Hacked . | . . Hacks Repelled . | . . Allies | -11 -10 -------- Run | Yrd Mat Total Allies . | . . Largest Group . | . . Highest-Rated Group . | . . Highest-Rated Ally . | . . Total Orders . | . . Ally Attacks . | . . Total Damage . | . . Kills . | . . Allies Corrupted . | . . Allies Melted . | . . Intel | -11 -10 ------- Run | Yrd Mat Robot Analysis Total . | . . Derelict Logs Recovered . | . . Drone Launches . | . . Drone Recoveries . | . . Exploration | -11 -10 ------------- Run | Yrd Mat Turns Passed 1672 | . 1672 Spaces Moved 461 | 1 460 Core . | . . Treads 13 | . 13 Legs 448 | 1 447 Wheels . | . . Hover . | . . Flight . | . . Fastest Speed 120 | 120 120 Average Speed 297 | 120 298 Slowest Speed 400 | 120 400 Overloaded Moves . | . . Propulsion Burnouts . | . . Robots Hopped . | . . Cave-ins Triggered . | . . Exploration Rate (%) 41 | 2 81 Regions Visited 1 Branch Regions . Pre-discovered Areas . | . . Known Exits Taken . | . . Unknown Exits Taken 1 | 1 . Scrap Searched . | . . Spaces Dug . | . . Terrain Destroyed . | . . Melee . | . . Projectile . | . . AOE . | . . Terrain Rammed . | . . Walls Destroyed . | . . Machines Disabled . | . . Actions | -11 -10 --------- Run | Yrd Mat Total 590 | . 590 Wait 13 | . 13 Move 460 | . 460 Hop . | . . Pick Up 12 | . 12 Fast Attach 5 | . 5 Attach 7 | . 7 Detach 1 | . 1 Swap 4 | . 4 Drop 1 | . 1 Fire 81 | . 81 Melee . | . . Ram . | . . Kick 6 | . 6 Crush . | . . Escape Stasis . | . . Rewire . | . . Trap . | . . Miscellaneous . | . . Route ------- -11/Scrapyard -10/Materials (discovered 2 exits: [*Mat] / [*Min]) History --------- Turn | Location | Event 1 | -11/Scrapyard | Discovered new exit (range 0) 1 | -11/Scrapyard | Entered Materials 287 | -10/Materials | Discovered new exit (range 14) 304 | -10/Materials | Build established: Mutant 891 | -10/Materials | Discovered new exit (range 12) 1545 | -10/Materials | Core integrity fell below 50% 1587 | -10/Materials | Core integrity fell below 20% 1631 | -10/Materials | Lost 4 parts (2n2w) 1673 | -10/Materials | Destroyed by G-34 Mercenary with Small Laser Last Messages --------------- 01584_ K-01 Serf collects debris. 01588_ Med. Laser destroyed. 01588_ K-01 Serf collects debris. 01589_ G-34 Mercenary knocked back. 01592_ K-01 Serf collects debris. 01593_ G-34 Mercenary knocked back. 01596_ K-01 Serf collects debris. 01597_ K-01 Serf destroyed. 01600_ Lgt. Cannon destroyed. 01606_ G-34 Mercenary destroyed. 01606_ Switching to secondary target: G-34 Mercenary. 01615_ Heat Sink melted. 01615_ G-34 Mercenary destroyed. 01621_ Acquired 84 matter. 01626_ O-16 Technician: "IFF HANDSHAKE FAILED. SECURING TERMINAL." 01630_ ALERT: Hostiles spotted, dispatching reinforcements to Terminal M005. 01632_ R-06 Scavenger collects Sml. Matter Pod. 01666_ G-34 Mercenary destroyed. 01666_ Switching to secondary target: G-34 Mercenary. Map ----- +----------------------------------------------------+ | ???????? ??# # ## #???? | | ???????? ???# #?######### #???? | | ????????????# ###???????# #???? | | ????????????+ # ##?????# #???? | | ????????????# # ? ????# #???? | | ????????????# # ? ###?# #???? | | ????????????# ## ##"T"### #???? | | ????????????# #???? | | ????????????# ###???? | | ????????????# ""#?????? | | ????????????# Y"#?????? | | ??????##????# !!! %%""#?????? | | ??????#== ### !! #?????? | | ??????#== !! #?????? | | ??????#!! % %#?????? | | ??????#!! !|% % #?????? | | ??????#// %!|% #?????? | | ??????#// =|%%% #?????? | | ??????###############= #?????? | | ????????????????????# #?????? | | ????????????????????# #?????? | | ####????????????????# #?????? | | #????????????????# #?????? | | #????????????????# #?????? | | #????????????????# #?????? | | #????????????????# @#?????? | | #????????????????# !#?????? | | #????????????????# g%#?????? | | #????????????? = ?????? | | #????????????+ ?????? | | #????????????# ????? | | #????????????########+## ????? | | #??????????????????? ?# ???? | | #??????????????????? ??? ???? | | #???????????????????""??? ??? | | #####??????????????????T"???? ??? | | #????????????????? ""???? ?? | | #????????????????????????? ?? | | """ #????????????????????????? #? | | """ #??????????????????????????#? | | """ #???????????????????????????? | | #???????????????????????????? | | #####???????????????????????????? | | ????????????????????????????????? | | ????????????????????????????????? | | ????????????????????????????????? | | ????????????????????????????????? | | | | | | | +----------------------------------------------------+ Best States ------------- Heat Dissipation 25 Energy Generation 10 Energy Capacity 125 Matter Stores 300 Matter Capacity 300 Sight Range 16 Terrain Scan Density 10 Evasion (%) 55 Recoil Reduction 2 Item Schematics ----------------- None Robot Schematics ------------------ None Fabricated ------------ Nothing Alien Tech Used ----------------- None Achievements -------------- None Challenges ------------ None Game ------ Seed BombTargetOptics Manual? 0 Play Time 00:08:48 Cumulative 264.6 hours Start 2024.06.09 @ 21:02:39 End 2024.06.09 @ 21:07:09 Sessions 1 Manual Loads 0 Difficulty Rogue Special Mode None Game No. 315 Rogue 315 Adventurer 0 Explorer 0 Win Type - Total 12 Types 6/1/2/1/1/0/0/1/0 Lore% 74 Gallery% 83 Achievement% 72 Wizard Run 0 Options --------- Layout 0 ASCII 0 Keyboard 0 Movement Numpad Keybinds 0 Fullscreen 1 Font 18/SmallcapsGlow Map View 76x50 Zoom Use 0% Tactical HUD 1 Map Filters NONE Filters NONE Steam 1 RUN: 9d20e2f6-f693-40eb-be6d-438cd403f73b